[Event "Early-Titled-Tuesday-Blitz-September-26-2023"]
[Site "Chess.com"]
[Date "2023.09.26"]
[Round "2"]
[White "tandaleo"]
[Black "yoelpolanco"]
[Result "0-1"]
[WhiteElo "2504"]
[BlackElo "2329"]
[TimeControl "180+1"]
[EndTime "8:18:05 PDT"]
[Termination "yoelpolanco won on time"]

1. d4 {[%clk 0:03:00.2]} 1... Nf6 {[%clk 0:02:59.2]} 2. Nc3 {[%clk 0:02:54.9]}
2... d5 {[%clk 0:02:51.9]} 3. Bf4 {[%clk 0:02:54.5]} 3... c5 {[%clk 0:02:50.3]}
4. e3 {[%clk 0:02:54.6]} 4... a6 {[%clk 0:02:46.1]} 5. Nf3 {[%clk 0:02:49.1]}
5... Nc6 {[%clk 0:02:37]} 6. Be2 {[%clk 0:02:48.7]} 6... e6 {[%clk 0:02:36.6]}
7. O-O {[%clk 0:02:48.5]} 7... Bd6 {[%clk 0:02:31.7]} 8. Bxd6 {[%clk 0:02:33.5]}
8... Qxd6 {[%clk 0:02:30.5]} 9. dxc5 {[%clk 0:02:33.8]} 9... Qxc5 {[%clk
0:02:28.8]} 10. Nd2 {[%clk 0:02:34.1]} 10... O-O {[%clk 0:02:25.1]} 11. Nb3
{[%clk 0:02:32.7]} 11... Qe7 {[%clk 0:02:22.9]} 12. Bf3 {[%clk 0:02:32.8]} 12...
Rd8 {[%clk 0:02:21.6]} 13. Qe2 {[%clk 0:02:30.6]} 13... e5 {[%clk 0:02:21.7]}
14. e4 {[%clk 0:02:31.1]} 14... d4 {[%clk 0:02:02.8]} 15. Nd5 {[%clk 0:02:31.3]}
15... Nxd5 {[%clk 0:02:02.3]} 16. exd5 {[%clk 0:02:32.2]} 16... Nb4 {[%clk
0:01:54.7]} 17. Nxd4 {[%clk 0:02:26.1]} 17... Nxd5 {[%clk 0:01:52.5]} 18. Nb3
{[%clk 0:02:23.6]} 18... Nf4 {[%clk 0:01:51.7]} 19. Qe3 {[%clk 0:02:11.8]} 19...
Bf5 {[%clk 0:01:48.7]} 20. g3 {[%clk 0:02:02.6]} 20... Nd5 {[%clk 0:01:35.2]}
21. Qe2 {[%clk 0:01:33.2]} 21... Nf6 {[%clk 0:01:15]} 22. Rad1 {[%clk
0:01:23.8]} 22... e4 {[%clk 0:01:10.6]} 23. Bg2 {[%clk 0:01:22.6]} 23... Qc7
{[%clk 0:01:03.7]} 24. Rxd8+ {[%clk 0:01:16.4]} 24... Rxd8 {[%clk 0:01:03.1]}
25. Rd1 {[%clk 0:01:17]} 25... Bg4 {[%clk 0:01:01.8]} 26. Rxd8+ {[%clk
0:01:17.2]} 26... Qxd8 {[%clk 0:01:02.7]} 27. Qd2 {[%clk 0:01:17.9]} 27... Qe7
{[%clk 0:00:58.7]} 28. Qd4 {[%clk 0:01:07.4]} 28... h5 {[%clk 0:00:56.8]} 29.
Nd2 {[%clk 0:01:00]} 29... Bf5 {[%clk 0:00:53.9]} 30. Nf1 {[%clk 0:00:59.1]}
30... Qd7 {[%clk 0:00:43.2]} 31. Qxd7 {[%clk 0:00:57.5]} 31... Nxd7 {[%clk
0:00:40.9]} 32. Ne3 {[%clk 0:00:56]} 32... Bg6 {[%clk 0:00:40]} 33. Bh3 {[%clk
0:00:51]} 33... Nb6 {[%clk 0:00:37.2]} 34. b3 {[%clk 0:00:44.1]} 34... Kf8
{[%clk 0:00:34]} 35. c4 {[%clk 0:00:44.2]} 35... Ke7 {[%clk 0:00:33.5]} 36. c5
{[%clk 0:00:38.7]} 36... Nd7 {[%clk 0:00:33.4]} 37. Bxd7 {[%clk 0:00:38.8]}
37... Kxd7 {[%clk 0:00:32.9]} 38. b4 {[%clk 0:00:12.7]} 38... Kc6 {[%clk
0:00:32.2]} 39. a3 {[%clk 0:00:13.3]} 39... Kb5 {[%clk 0:00:27.2]} 40. Kf1
{[%clk 0:00:13.7]} 40... Ka4 {[%clk 0:00:27.3]} 41. Nc4 {[%clk 0:00:12.8]} 41...
f6 {[%clk 0:00:23.9]} 42. Ke2 {[%clk 0:00:07.3]} 42... Be8 {[%clk 0:00:21.7]}
43. Kd2 {[%clk 0:00:05.6]} 43... Bb5 {[%clk 0:00:20.4]} 44. Nd6 {[%clk 0:00:06]}
44... Bc6 {[%clk 0:00:20.5]} 45. Kc3 {[%clk 0:00:05.8]} 45... Kxa3 {[%clk
0:00:20.3]} 46. Nf5 {[%clk 0:00:04.4]} 46... g6 {[%clk 0:00:20]} 47. Ne7 {[%clk
0:00:04.3]} 47... g5 {[%clk 0:00:19.7]} 48. Ng8 {[%clk 0:00:02.7]} 48... f5
{[%clk 0:00:18.5]} 49. Ne7 {[%clk 0:00:02.8]} 49... f4 {[%clk 0:00:18.4]} 50.
Ng6 {[%clk 0:00:01.7]} 50... fxg3 {[%clk 0:00:18.1]} 51. hxg3 {[%clk 0:00:02.6]}
51... Ka4 {[%clk 0:00:15.9]} 0-1

[Event "Early-Titled-Tuesday-Blitz-September-26-2023"]
[Site "Chess.com"]
[Date "2023.09.26"]
[Round "2"]
[White "PeshkaCh"]
[Black "DefiantChair"]
[Result "1-0"]
[WhiteElo "2802"]
[BlackElo "2583"]
[TimeControl "180+1"]
[EndTime "8:18:07 PDT"]
[Termination "PeshkaCh won by resignation"]

1. Nf3 {[%clk 0:03:00.9]} 1... d5 {[%clk 0:02:59.9]} 2. d4 {[%clk 0:03:00.9]}
2... Nf6 {[%clk 0:03:00]} 3. c4 {[%clk 0:02:57.9]} 3... e6 {[%clk 0:03:00.1]} 4.
Nc3 {[%clk 0:02:56.1]} 4... Bb4 {[%clk 0:03:00]} 5. Bg5 {[%clk 0:02:56.1]} 5...
dxc4 {[%clk 0:02:59.9]} 6. e3 {[%clk 0:02:52.2]} 6... b5 {[%clk 0:02:59.8]} 7.
a4 {[%clk 0:02:51.4]} 7... c6 {[%clk 0:02:58.9]} 8. axb5 {[%clk 0:02:43.3]} 8...
cxb5 {[%clk 0:02:59.8]} 9. Nd2 {[%clk 0:02:43.9]} 9... Bxc3 {[%clk 0:02:21.8]}
10. bxc3 {[%clk 0:02:44.8]} 10... Bb7 {[%clk 0:02:21.9]} 11. Qb1 {[%clk
0:02:39]} 11... Qd7 {[%clk 0:02:20.7]} 12. Be2 {[%clk 0:02:08.1]} 12... Bxg2
{[%clk 0:02:12.3]} 13. Rg1 {[%clk 0:02:07.6]} 13... Bb7 {[%clk 0:02:01.4]} 14.
Bh4 {[%clk 0:02:04.1]} 14... Kf8 {[%clk 0:01:54.1]} 15. Qb4+ {[%clk 0:01:57.3]}
15... Ke8 {[%clk 0:01:47.2]} 16. Rxg7 {[%clk 0:01:08.8]} 16... Nd5 {[%clk
0:01:47]} 17. Qa3 {[%clk 0:01:02.6]} 17... Nc6 {[%clk 0:01:40.4]} 18. Ne4 {[%clk
0:00:50.3]} 18... b4 {[%clk 0:01:40.3]} 19. cxb4 {[%clk 0:00:49.1]} 19... Ncxb4
{[%clk 0:01:41.2]} 20. Nf6+ {[%clk 0:00:27.2]} 20... Nxf6 {[%clk 0:01:34]} 21.
Qxb4 {[%clk 0:00:27.7]} 21... Nd5 {[%clk 0:01:21.2]} 22. Qc5 {[%clk 0:00:25.4]}
22... Rc8 {[%clk 0:00:52]} 23. Qxa7 {[%clk 0:00:19.3]} 23... Qb5 {[%clk
0:00:51.2]} 24. Qa3 {[%clk 0:00:11.8]} 24... Nb4 {[%clk 0:00:42.1]} 25. Kf1
{[%clk 0:00:09.7]} 25... Nc6 {[%clk 0:00:08.5]} 26. Rc1 {[%clk 0:00:06.3]} 26...
Nb4 {[%clk 0:00:08.1]} 27. Kg1 {[%clk 0:00:01.9]} 27... Kf8 {[%clk 0:00:07.2]}
28. Rg5 {[%clk 0:00:01.8]} 28... Rg8 {[%clk 0:00:06.5]} 29. Rxg8+ {[%clk
0:00:01.3]} 29... Kxg8 {[%clk 0:00:07.4]} 30. Rb1 {[%clk 0:00:01.8]} 30... Qd5
{[%clk 0:00:07.6]} 31. f3 {[%clk 0:00:01.9]} 31... Nc2 {[%clk 0:00:06.7]} 32.
Qc3 {[%clk 0:00:02.5]} 32... Ra8 {[%clk 0:00:05.8]} 33. Qxc2 {[%clk 0:00:02.5]}
33... Qh5 {[%clk 0:00:06]} 34. Bg3 {[%clk 0:00:02.1]} 34... Bc6 {[%clk
0:00:05.3]} 35. Kf2 {[%clk 0:00:02.1]} 35... Rc8 {[%clk 0:00:04.5]} 36. Rc1
{[%clk 0:00:01.4]} 36... Bd5 {[%clk 0:00:04.6]} 37. Qc3 {[%clk 0:00:02]} 37...
Qg6 {[%clk 0:00:04.3]} 38. e4 {[%clk 0:00:02.7]} 38... Bb7 {[%clk 0:00:04]} 39.
Qe3 {[%clk 0:00:02.9]} 39... c3 {[%clk 0:00:04]} 40. Rxc3 {[%clk 0:00:03.4]}
40... Rd8 {[%clk 0:00:04.4]} 41. Rc7 {[%clk 0:00:03.9]} 41... Ba6 {[%clk
0:00:04.3]} 42. Bxa6 {[%clk 0:00:03.7]} 1-0

[Event "Early-Titled-Tuesday-Blitz-September-26-2023"]
[Site "Chess.com"]
[Date "2023.09.26"]
[Round "2"]
[White "AleksanderHnydiuk"]
[Black "ArtemDyachuk"]
[Result "1-0"]
[WhiteElo "2538"]
[BlackElo "2694"]
[TimeControl "180+1"]
[EndTime "8:18:09 PDT"]
[Termination "AleksanderHnydiuk won on time"]

1. e4 {[%clk 0:03:00.9]} 1... c5 {[%clk 0:02:59.2]} 2. Nf3 {[%clk 0:03:00.9]}
2... d6 {[%clk 0:02:58.6]} 3. d4 {[%clk 0:03:01]} 3... cxd4 {[%clk 0:02:58.4]}
4. Nxd4 {[%clk 0:03:01.9]} 4... Nf6 {[%clk 0:02:58.8]} 5. Nc3 {[%clk 0:03:02.3]}
5... Nc6 {[%clk 0:02:59.4]} 6. Bg5 {[%clk 0:03:01.5]} 6... Bd7 {[%clk
0:02:59.5]} 7. Qd2 {[%clk 0:03:00.3]} 7... a6 {[%clk 0:02:58.1]} 8. O-O-O {[%clk
0:02:58.5]} 8... e6 {[%clk 0:02:57.9]} 9. Kb1 {[%clk 0:02:56.2]} 9... Be7 {[%clk
0:02:56]} 10. h4 {[%clk 0:02:48.3]} 10... Qc7 {[%clk 0:02:43.8]} 11. f3 {[%clk
0:02:43.6]} 11... Nxd4 {[%clk 0:02:37]} 12. Qxd4 {[%clk 0:02:43]} 12... Rc8
{[%clk 0:02:36.8]} 13. Qd2 {[%clk 0:02:29.3]} 13... b5 {[%clk 0:02:27.8]} 14.
Bd3 {[%clk 0:02:29.3]} 14... b4 {[%clk 0:01:53.4]} 15. Ne2 {[%clk 0:02:29.1]}
15... a5 {[%clk 0:01:54]} 16. Nd4 {[%clk 0:02:27.3]} 16... Qb7 {[%clk
0:01:53.2]} 17. g4 {[%clk 0:02:21.7]} 17... g6 {[%clk 0:01:15.4]} 18. h5 {[%clk
0:02:18.5]} 18... e5 {[%clk 0:00:47.5]} 19. hxg6 {[%clk 0:01:56.6]} 19... fxg6
{[%clk 0:00:44.8]} 20. Nb3 {[%clk 0:01:43.4]} 20... a4 {[%clk 0:00:34.7]} 21.
Na5 {[%clk 0:01:42.9]} 21... Qc7 {[%clk 0:00:34.2]} 22. Nc4 {[%clk 0:01:42.1]}
22... O-O {[%clk 0:00:25.7]} 23. Be3 {[%clk 0:01:23.9]} 23... Be6 {[%clk
0:00:21.9]} 24. b3 {[%clk 0:01:10]} 24... d5 {[%clk 0:00:18.5]} 25. Nb6 {[%clk
0:01:02.1]} 25... axb3 {[%clk 0:00:15.1]} 26. cxb3 {[%clk 0:00:59.6]} 26... Rcd8
{[%clk 0:00:10.5]} 27. g5 {[%clk 0:00:57.9]} 27... dxe4 {[%clk 0:00:07.9]} 28.
gxf6 {[%clk 0:00:43.3]} 28... Rxd3 {[%clk 0:00:05.8]} 29. fxe7 {[%clk
0:00:39.4]} 29... Qxe7 {[%clk 0:00:04.8]} 30. Qe2 {[%clk 0:00:31.5]} 30... Rxd1+
{[%clk 0:00:03.3]} 31. Rxd1 {[%clk 0:00:30.7]} 31... exf3 {[%clk 0:00:04.2]} 32.
Qf2 {[%clk 0:00:30.1]} 32... Bf5+ {[%clk 0:00:04.6]} 33. Ka1 {[%clk 0:00:27.2]}
33... e4 {[%clk 0:00:04.8]} 34. Bd4 {[%clk 0:00:22.9]} 34... Rd8 {[%clk
0:00:04.1]} 35. Rc1 {[%clk 0:00:18.5]} 35... e3 {[%clk 0:00:02.9]} 36. Qxe3
{[%clk 0:00:15]} 36... Qxe3 {[%clk 0:00:02.7]} 37. Bxe3 {[%clk 0:00:15.9]} 37...
Rd3 {[%clk 0:00:02.8]} 38. Bc5 {[%clk 0:00:12.7]} 38... Rd2 {[%clk 0:00:02.6]}
39. Rf1 {[%clk 0:00:12.4]} 39... Bg4 {[%clk 0:00:02]} 40. Nc4 {[%clk 0:00:10.7]}
40... Re2 {[%clk 0:00:02.1]} 41. Bxb4 {[%clk 0:00:09.2]} 41... h5 {[%clk
0:00:01.2]} 42. Bc5 {[%clk 0:00:08.4]} 42... h4 {[%clk 0:00:01.3]} 43. Ne3
{[%clk 0:00:04]} 43... Bh5 {[%clk 0:00:01.4]} 44. Nd5 {[%clk 0:00:02.8]} 44...
Kh7 {[%clk 0:00:01.4]} 45. Nf6+ {[%clk 0:00:02.7]} 1-0

[Event "Early-Titled-Tuesday-Blitz-September-26-2023"]
[Site "Chess.com"]
[Date "2023.09.26"]
[Round "2"]
[White "ChainedDowntohell"]
[Black "drdaro"]
[Result "1-0"]
[WhiteElo "2487"]
[BlackElo "2272"]
[TimeControl "180+1"]
[EndTime "8:18:09 PDT"]
[Termination "ChainedDowntohell won by checkmate"]

1. d4 {[%clk 0:03:00.9]} 1... c5 {[%clk 0:02:54.3]} 2. d5 {[%clk 0:02:57.5]}
2... e5 {[%clk 0:02:51.6]} 3. c4 {[%clk 0:02:55.9]} 3... d6 {[%clk 0:02:51.8]}
4. Nc3 {[%clk 0:02:55.3]} 4... g6 {[%clk 0:02:51.7]} 5. e4 {[%clk 0:02:54.3]}
5... Bg7 {[%clk 0:02:52.6]} 6. Bd3 {[%clk 0:02:48.1]} 6... Ne7 {[%clk
0:02:52.9]} 7. g4 {[%clk 0:02:41.2]} 7... O-O {[%clk 0:02:53.8]} 8. Bg5 {[%clk
0:02:40.6]} 8... f6 {[%clk 0:02:41.4]} 9. Bh4 {[%clk 0:02:38.2]} 9... g5 {[%clk
0:02:31.1]} 10. Bg3 {[%clk 0:02:36.3]} 10... Ng6 {[%clk 0:02:32]} 11. f3 {[%clk
0:02:19.6]} 11... Nf4 {[%clk 0:02:27.1]} 12. h4 {[%clk 0:02:16]} 12... a6 {[%clk
0:02:24.5]} 13. a4 {[%clk 0:02:05.8]} 13... Qa5 {[%clk 0:02:20.1]} 14. Kf1
{[%clk 0:02:00.9]} 14... Rf7 {[%clk 0:02:04]} 15. Be1 {[%clk 0:01:53.7]} 15...
Qd8 {[%clk 0:01:50.7]} 16. Nge2 {[%clk 0:01:50.8]} 16... Nd7 {[%clk 0:01:49.6]}
17. Ng3 {[%clk 0:01:35.7]} 17... Nf8 {[%clk 0:01:48.6]} 18. Rh2 {[%clk
0:01:26.3]} 18... N8g6 {[%clk 0:01:45]} 19. h5 {[%clk 0:01:16]} 19... Ne7 {[%clk
0:01:38]} 20. Kg1 {[%clk 0:01:11.1]} 20... Bd7 {[%clk 0:01:37.4]} 21. Bf1 {[%clk
0:01:08.6]} 21... Rb8 {[%clk 0:01:35.7]} 22. Qc1 {[%clk 0:00:59.8]} 22... Nc8
{[%clk 0:01:26.5]} 23. Rb1 {[%clk 0:00:51.2]} 23... a5 {[%clk 0:01:13.8]} 24.
Kf2 {[%clk 0:00:45.9]} 24... Nb6 {[%clk 0:01:13.6]} 25. b3 {[%clk 0:00:41.2]}
25... Nc8 {[%clk 0:01:10.5]} 26. Ke3 {[%clk 0:00:41.5]} 26... b6 {[%clk
0:01:10.8]} 27. Kd2 {[%clk 0:00:41.9]} 27... h6 {[%clk 0:01:09.7]} 28. Kc2
{[%clk 0:00:41.8]} 28... Kh7 {[%clk 0:01:09.4]} 29. Kb2 {[%clk 0:00:42]} 29...
Be8 {[%clk 0:01:03.7]} 30. Ka2 {[%clk 0:00:42.3]} 30... Bd7 {[%clk 0:01:04.2]}
31. Nd1 {[%clk 0:00:42.2]} 31... Ne7 {[%clk 0:01:04.7]} 32. Ne3 {[%clk
0:00:42.4]} 32... Rf8 {[%clk 0:01:04.6]} 33. Bc3 {[%clk 0:00:42.1]} 33... Re8
{[%clk 0:01:04.9]} 34. Qd2 {[%clk 0:00:42.2]} 34... Qc7 {[%clk 0:01:05.5]} 35.
Re1 {[%clk 0:00:41.9]} 35... Qd8 {[%clk 0:01:05.1]} 36. Bd3 {[%clk 0:00:42.3]}
36... Rf8 {[%clk 0:01:05.7]} 37. Bc2 {[%clk 0:00:42.8]} 37... Qe8 {[%clk
0:01:06.2]} 38. Nef5 {[%clk 0:00:42.5]} 38... Nxf5 {[%clk 0:01:06.3]} 39. exf5
{[%clk 0:00:37.3]} 39... Rf7 {[%clk 0:01:02.5]} 40. Ne4 {[%clk 0:00:36.6]} 40...
Bf8 {[%clk 0:01:02.8]} 41. Bb1 {[%clk 0:00:28]} 41... Kg7 {[%clk 0:01:03.1]} 42.
Bc2 {[%clk 0:00:28.5]} 42... Qd8 {[%clk 0:01:03]} 43. Rhh1 {[%clk 0:00:28.4]}
43... Qc7 {[%clk 0:01:03.4]} 44. Re3 {[%clk 0:00:28.8]} 44... Rd8 {[%clk
0:01:00.1]} 45. Rhe1 {[%clk 0:00:29.1]} 45... Re7 {[%clk 0:01:00.7]} 46. Bb1
{[%clk 0:00:24.6]} 46... Ree8 {[%clk 0:01:01.2]} 47. Qb2 {[%clk 0:00:24.8]}
47... Rb8 {[%clk 0:01:01.8]} 48. Qf2 {[%clk 0:00:19.6]} 48... Rb7 {[%clk
0:01:02.3]} 49. Qb2 {[%clk 0:00:19.5]} 49... Reb8 {[%clk 0:01:01.8]} 50. Qf2
{[%clk 0:00:19.4]} 50... Ra8 {[%clk 0:01:01.9]} 51. Qb2 {[%clk 0:00:19.5]} 51...
b5 {[%clk 0:01:02.3]} 52. cxb5 {[%clk 0:00:19.2]} 52... Bxb5 {[%clk 0:01:01.4]}
53. Nxf6 {[%clk 0:00:12.9]} 53... Kxf6 {[%clk 0:00:44.5]} 54. Rxe5 {[%clk
0:00:12.6]} 54... Kf7 {[%clk 0:00:39.8]} 55. Re6 {[%clk 0:00:08.3]} 55... Nxd5
{[%clk 0:00:31.5]} 56. Be4 {[%clk 0:00:02.8]} 56... Bxa4 {[%clk 0:00:27.2]} 57.
Bxd5 {[%clk 0:00:02.2]} 57... Bc6 {[%clk 0:00:27]} 58. Re7# {[%clk 0:00:02.3]}
1-0

[Event "Early-Titled-Tuesday-Blitz-September-26-2023"]
[Site "Chess.com"]
[Date "2023.09.26"]
[Round "2"]
[White "KIEV-1"]
[Black "Truequitos"]
[Result "1/2-1/2"]
[WhiteElo "2195"]
[BlackElo "2439"]
[TimeControl "180+1"]
[EndTime "8:18:11 PDT"]
[Termination "Game drawn by repetition"]

1. e4 {[%clk 0:03:00.9]} 1... d5 {[%clk 0:03:00.9]} 2. exd5 {[%clk 0:02:59.8]}
2... Qxd5 {[%clk 0:03:01.8]} 3. Nc3 {[%clk 0:03:00]} 3... Qd6 {[%clk 0:03:02.3]}
4. d4 {[%clk 0:02:59.9]} 4... Nf6 {[%clk 0:03:02.8]} 5. Nf3 {[%clk 0:02:59.4]}
5... g6 {[%clk 0:03:03.3]} 6. Be3 {[%clk 0:02:59.4]} 6... Bg7 {[%clk 0:03:03.7]}
7. Qd2 {[%clk 0:02:59.6]} 7... O-O {[%clk 0:03:04.3]} 8. h3 {[%clk 0:02:59.5]}
8... Rd8 {[%clk 0:03:03.6]} 9. O-O-O {[%clk 0:02:59.3]} 9... Nc6 {[%clk
0:02:54.2]} 10. Nb5 {[%clk 0:02:24.9]} 10... Qd7 {[%clk 0:02:52.1]} 11. Bc4
{[%clk 0:02:20.8]} 11... a6 {[%clk 0:02:47.4]} 12. Nc3 {[%clk 0:02:18.3]} 12...
b5 {[%clk 0:02:47.9]} 13. Bb3 {[%clk 0:02:17.1]} 13... b4 {[%clk 0:02:48.4]} 14.
Na4 {[%clk 0:02:15]} 14... Nd5 {[%clk 0:02:32]} 15. Bh6 {[%clk 0:02:04.8]} 15...
Bh8 {[%clk 0:02:31.3]} 16. Rhe1 {[%clk 0:02:04.8]} 16... e6 {[%clk 0:02:24]} 17.
Bg5 {[%clk 0:01:56]} 17... f6 {[%clk 0:02:20.6]} 18. Bf4 {[%clk 0:01:47.9]}
18... a5 {[%clk 0:02:17.2]} 19. Nc5 {[%clk 0:01:46.9]} 19... Qf7 {[%clk
0:02:17.4]} 20. Bxd5 {[%clk 0:01:42.5]} 20... Rxd5 {[%clk 0:02:11.1]} 21. Qe3
{[%clk 0:01:34.6]} 21... Nd8 {[%clk 0:02:08]} 22. g4 {[%clk 0:01:25.5]} 22...
Bg7 {[%clk 0:02:05.6]} 23. g5 {[%clk 0:01:22.9]} 23... Bf8 {[%clk 0:02:05.6]}
24. gxf6 {[%clk 0:01:21.3]} 24... Bxc5 {[%clk 0:02:05.7]} 25. dxc5 {[%clk
0:01:21.4]} 25... Bb7 {[%clk 0:02:00.1]} 26. Bg5 {[%clk 0:01:12.6]} 26... Nc6
{[%clk 0:01:27.4]} 27. Qxe6 {[%clk 0:01:07.4]} 27... Qxe6 {[%clk 0:01:21.6]} 28.
Rxe6 {[%clk 0:01:08.3]} 28... Rad8 {[%clk 0:01:17.1]} 29. Rxd5 {[%clk
0:00:55.7]} 29... Rxd5 {[%clk 0:01:18]} 30. Bh6 {[%clk 0:00:55.8]} 30... Kf7
{[%clk 0:01:14.3]} 31. Re1 {[%clk 0:00:40.3]} 31... Kxf6 {[%clk 0:01:00.6]} 32.
Be3 {[%clk 0:00:40.8]} 32... Rf5 {[%clk 0:00:57.4]} 33. Nd4 {[%clk 0:00:39.6]}
33... Nxd4 {[%clk 0:00:56.7]} 34. Bxd4+ {[%clk 0:00:40.5]} 34... Kf7 {[%clk
0:00:55.8]} 35. b3 {[%clk 0:00:38.7]} 35... Rf3 {[%clk 0:00:53.5]} 36. Re3
{[%clk 0:00:19.9]} 36... Rf5 {[%clk 0:00:53.1]} 37. Kb2 {[%clk 0:00:19.6]} 37...
g5 {[%clk 0:00:49.6]} 38. Rg3 {[%clk 0:00:19.3]} 38... Bf3 {[%clk 0:00:48.2]}
39. Be3 {[%clk 0:00:17.9]} 39... h6 {[%clk 0:00:47]} 40. a3 {[%clk 0:00:18.3]}
40... Ke6 {[%clk 0:00:46.6]} 41. axb4 {[%clk 0:00:18.8]} 41... axb4 {[%clk
0:00:47.5]} 42. c3 {[%clk 0:00:19.3]} 42... bxc3+ {[%clk 0:00:44.9]} 43. Kxc3
{[%clk 0:00:20.2]} 43... Kd5 {[%clk 0:00:45.7]} 44. Rg1 {[%clk 0:00:19.4]} 44...
h5 {[%clk 0:00:43.6]} 45. b4 {[%clk 0:00:19.4]} 45... Kc6 {[%clk 0:00:43.6]} 46.
Ra1 {[%clk 0:00:18.8]} 46... Be2 {[%clk 0:00:42.3]} 47. Ra2 {[%clk 0:00:17.4]}
47... Bb5 {[%clk 0:00:41.9]} 48. Ra8 {[%clk 0:00:16.2]} 48... g4 {[%clk
0:00:39.2]} 49. hxg4 {[%clk 0:00:14.4]} 49... hxg4 {[%clk 0:00:40.1]} 50. Rg8
{[%clk 0:00:14.6]} 50... Be2 {[%clk 0:00:40.6]} 51. Rg6+ {[%clk 0:00:14.1]}
51... Kb5 {[%clk 0:00:41.2]} 52. Rg5 {[%clk 0:00:13.7]} 52... Rf8 {[%clk
0:00:37.1]} 53. Rg7 {[%clk 0:00:13.6]} 53... Kc6 {[%clk 0:00:36.2]} 54. Rg6+
{[%clk 0:00:13.6]} 54... Kb5 {[%clk 0:00:36.2]} 55. Rg7 {[%clk 0:00:14.2]} 55...
Kc6 {[%clk 0:00:34]} 56. Kd4 {[%clk 0:00:13.7]} 56... Rd8+ {[%clk 0:00:33.4]}
57. Kc3 {[%clk 0:00:13.7]} 57... Rd3+ {[%clk 0:00:33.1]} 58. Kc2 {[%clk
0:00:14]} 58... Ra3 {[%clk 0:00:30.4]} 59. Kb2 {[%clk 0:00:13.8]} 59... Ra8
{[%clk 0:00:29.7]} 60. Kc3 {[%clk 0:00:13.5]} 60... Ra3+ {[%clk 0:00:28.5]} 61.
Kb2 {[%clk 0:00:13.7]} 61... Rd3 {[%clk 0:00:28.5]} 62. Kc2 {[%clk 0:00:13.8]}
62... Rd5 {[%clk 0:00:28.4]} 63. Kc3 {[%clk 0:00:13.8]} 63... Rd3+ {[%clk
0:00:28.3]} 64. Kc2 {[%clk 0:00:14.2]} 1/2-1/2

[Event "Early-Titled-Tuesday-Blitz-September-26-2023"]
[Site "Chess.com"]
[Date "2023.09.26"]
[Round "2"]
[White "sergoy"]
[Black "astralpulse"]
[Result "1/2-1/2"]
[WhiteElo "2917"]
[BlackElo "2623"]
[TimeControl "180+1"]
[EndTime "8:18:18 PDT"]
[Termination "Game drawn by repetition"]

1. d4 {[%clk 0:03:00.9]} 1... d5 {[%clk 0:02:59.1]} 2. c4 {[%clk 0:03:01.4]}
2... e6 {[%clk 0:02:59.1]} 3. Nf3 {[%clk 0:03:01.5]} 3... Nf6 {[%clk 0:02:59]}
4. Nc3 {[%clk 0:03:02.2]} 4... Be7 {[%clk 0:02:58.5]} 5. Bf4 {[%clk 0:03:02.3]}
5... c5 {[%clk 0:02:56.4]} 6. cxd5 {[%clk 0:02:56.1]} 6... Nxd5 {[%clk 0:02:53]}
7. Nxd5 {[%clk 0:02:55.8]} 7... exd5 {[%clk 0:02:52.4]} 8. e3 {[%clk 0:02:52.8]}
8... Nc6 {[%clk 0:02:51.7]} 9. Bd3 {[%clk 0:02:51.6]} 9... cxd4 {[%clk
0:02:39.5]} 10. exd4 {[%clk 0:02:49]} 10... Bb4+ {[%clk 0:02:32.7]} 11. Bd2
{[%clk 0:02:22.4]} 11... Qe7+ {[%clk 0:02:32.5]} 12. Be2 {[%clk 0:02:17]} 12...
O-O {[%clk 0:02:14]} 13. O-O {[%clk 0:02:16.9]} 13... Bg4 {[%clk 0:02:09]} 14.
Bg5 {[%clk 0:02:16.5]} 14... Qd6 {[%clk 0:02:03.2]} 15. Bh4 {[%clk 0:02:06.4]}
15... Rfe8 {[%clk 0:01:47]} 16. Bg3 {[%clk 0:02:04.4]} 16... Qh6 {[%clk
0:01:37.9]} 17. h3 {[%clk 0:01:12.9]} 17... Bh5 {[%clk 0:01:35.5]} 18. a3 {[%clk
0:01:08.1]} 18... Ba5 {[%clk 0:01:34.6]} 19. b4 {[%clk 0:00:53]} 19... Bb6
{[%clk 0:01:34.5]} 20. b5 {[%clk 0:00:53.6]} 20... Bxf3 {[%clk 0:01:21.8]} 21.
Bxf3 {[%clk 0:00:53.1]} 21... Nxd4 {[%clk 0:01:21.5]} 22. Bxd5 {[%clk
0:00:53.3]} 22... Rad8 {[%clk 0:01:21.3]} 23. Bc4 {[%clk 0:00:31.1]} 23... Ne2+
{[%clk 0:01:05.7]} 24. Bxe2 {[%clk 0:00:28.6]} 24... Rxd1 {[%clk 0:01:05.8]} 25.
Bxd1 {[%clk 0:00:29.2]} 25... Qg5 {[%clk 0:01:02.3]} 26. Kh2 {[%clk 0:00:24.3]}
26... Qxb5 {[%clk 0:01:02.1]} 27. Bf3 {[%clk 0:00:24.6]} 27... Re7 {[%clk
0:00:45.6]} 28. a4 {[%clk 0:00:21.1]} 28... Qe8 {[%clk 0:00:41.3]} 29. Rfc1
{[%clk 0:00:20.8]} 29... h6 {[%clk 0:00:39.7]} 30. a5 {[%clk 0:00:20.8]} 30...
Bd4 {[%clk 0:00:37.6]} 31. Rab1 {[%clk 0:00:19.1]} 31... b6 {[%clk 0:00:37.6]}
32. Bg4 {[%clk 0:00:17.1]} 32... Kh7 {[%clk 0:00:36]} 33. Rc8 {[%clk 0:00:14.5]}
33... Qa4 {[%clk 0:00:35.7]} 34. Rd1 {[%clk 0:00:13]} 34... g6 {[%clk
0:00:25.7]} 35. axb6 {[%clk 0:00:09]} 35... axb6 {[%clk 0:00:25.1]} 36. Bf3
{[%clk 0:00:05.8]} 36... Bg7 {[%clk 0:00:24.3]} 37. Rdd8 {[%clk 0:00:04.8]}
37... b5 {[%clk 0:00:23.2]} 38. Rb8 {[%clk 0:00:05.1]} 38... Qc4 {[%clk
0:00:22.2]} 39. Rdc8 {[%clk 0:00:05.3]} 39... Qd3 {[%clk 0:00:21.5]} 40. Rd8
{[%clk 0:00:05.4]} 40... Rd7 {[%clk 0:00:22.1]} 41. Rdc8 {[%clk 0:00:05.9]}
41... Bc3 {[%clk 0:00:20.2]} 42. Bc6 {[%clk 0:00:05.6]} 42... b4 {[%clk
0:00:15.6]} 43. Bxd7 {[%clk 0:00:05.6]} 43... Qxd7 {[%clk 0:00:16.2]} 44. Rd8
{[%clk 0:00:06.2]} 44... Qe6 {[%clk 0:00:15.5]} 45. h4 {[%clk 0:00:06.7]} 45...
h5 {[%clk 0:00:15.3]} 46. Re8 {[%clk 0:00:06.4]} 46... Qf5 {[%clk 0:00:14.7]}
47. Rec8 {[%clk 0:00:05.6]} 47... Qd3 {[%clk 0:00:13.9]} 48. Rd8 {[%clk
0:00:05.9]} 48... Qc2 {[%clk 0:00:13.5]} 49. Rbc8 {[%clk 0:00:04.1]} 49... Qf5
{[%clk 0:00:13.7]} 50. Rb8 {[%clk 0:00:03.6]} 50... Qe6 {[%clk 0:00:12.9]} 51.
Rdc8 {[%clk 0:00:03.7]} 51... Qf6 {[%clk 0:00:11.9]} 52. Rc4 {[%clk 0:00:03.3]}
52... Qe6 {[%clk 0:00:10.9]} 53. Rcc8 {[%clk 0:00:02.8]} 53... Bg7 {[%clk
0:00:10.5]} 54. Rc5 {[%clk 0:00:02.3]} 54... Bc3 {[%clk 0:00:10.1]} 55. Rcc8
{[%clk 0:00:02.4]} 1/2-1/2